bitfinex-derivatives/quotes_ETHF0:USTF0_20260213
["timestamp","ask_amount","ask_price","bid_price","bid_amount"]
[1771024522743,0.00534232,2053.4,2052.8,0.55295837]
[1771024523543,0.56210356,2053.4,2052.8,0.55295837]
[1771024523748,0.00534232,2053.4,2052.8,0.55295837]
[1771024524942,0.00534232,2053.4,2053.0,0.55295837]
[1771024525149,0.56210356,2053.4,2053.0,0.55295837]
[1771024525648,0.00534232,2053.4,2053.0,0.55295837]
[1771024525849,0.56210356,2053.4,2053.0,0.55295837]
[1771024526943,0.00534232,2053.4,2053.0,0.55295837]
[1771024527851,0.55676124,2053.8,2053.0,0.55295837]
[1771024528854,0.56151269,2053.8,2053.0,0.55295837]
[1771024530556,0.56151269,2053.8,2053.2,0.55295837]
[1771024530856,0.00475145,2053.8,2053.2,0.55295837]
[1771024531559,0.54581595,2054.1,2053.4,0.53233012]
[1771024532753,0.55199086,2054.1,2053.4,0.5379348]
[1771024533856,0.55199086,2054.1,2053.4,0.00560468]
[1771024536962,0.54581595,2053.8,2053.1,0.53233012]
[1771024537162,0.54581595,2053.8,2053.0,0.53233012]
[1771024538266,0.54581595,2053.5,2052.7,0.77605012]
[1771024538866,0.54581595,2053.5,2052.7,0.24372]
[1771024539371,0.54581595,2053.5,2052.7,0.24737622]
[1771024539569,0.54581595,2053.5,2052.7,0.77970634]
[1771024539770,0.54581595,2053.5,2052.8,0.53233012]
[1771024546175,0.54581595,2053.5,2052.7,0.58338857]
[1771024546376,0.58122753,2053.3,2052.7,0.00365622]
[1771024546673,0.58122753,2053.3,2052.7,0.58338857]
[1771024548077,0.584799,2053.5,2052.7,0.58338857]
[1771024552578,0.584799,2053.3,2052.7,0.58338857]
[1771024554579,0.584799,2053.1,2052.7,0.58338857]
[1771024557373,0.584799,2053.1,2052.7,0.00365622]
[1771024557576,0.584799,2052.9,2052.3,0.57973235]
[1771024558573,0.584799,2052.9,2052.3,0.58434402]
[1771024560485,0.584799,2052.7,2052.3,0.00461167]
[1771024564480,0.58721184,2052.5,2052.1,0.58457748]
[1771024565481,0.59164753,2052.5,2052.1,0.59010694]
[1771024566280,0.00443569,2052.5,2052.1,0.59010694]
[1771024567886,0.59164753,2052.5,2052.1,0.00552946]
[1771024568091,0.59164753,2052.5,2051.8,0.58457748]
[1771024569089,0.59164753,2052.5,2051.8,0.58824054]
[1771024574196,0.58721184,2052.3,2051.8,0.00366306]
[1771024574393,0.58721184,2052.1,2051.5,0.82844748]
[1771024574691,0.58721184,2052.1,2051.6,0.58457748]
[1771024575492,0.58721184,2052.1,2051.6,0.58904131]
[1771024578197,0.58721184,2052.1,2051.6,0.00446383]
[1771024584397,0.58721184,2051.9,2051.2,0.58457748]
[1771024585601,0.58721184,2051.9,2051.2,0.59015211]
[1771024586197,0.58721184,2051.9,2051.4,0.58457748]
[1771024587005,0.58721184,2052.1,2051.5,0.58457748]
[1771024589004,0.58721184,2052.3,2051.5,0.58457748]
[1771024593209,0.52967718,2052.0,2051.4,0.53605107]
[1771024595212,0.52967718,2052.2,2051.5,0.24388]
[1771024595411,0.52967718,2052.2,2051.6,0.53605107]
[1771024597714,0.52967718,2052.3,2051.6,0.53605107]
[1771024604117,0.56063026,2052.1,2051.6,0.53605107]
[1771024606815,0.56063026,2051.9,2051.4,0.5396924]
[1771024607415,0.56063026,2051.9,2051.3,0.5396924]
[1771024607715,0.56063026,2051.7,2051.3,0.5396924]
[1771024607924,0.56063026,2051.7,2051.2,0.54526703]
[1771024613024,0.56063026,2051.9,2051.2,0.54526703]
[1771024617127,4.046,2052.0,2051.2,0.54526703]
[1771024617527,4.60663026,2052.0,2051.2,0.54526703]
[1771024617727,0.56063026,2051.9,2051.2,0.54526703]
[1771024634737,0.56063026,2051.9,2051.2,0.00557463]
[1771024635135,0.56063026,2051.9,2051.2,0.54422397]
[1771024635730,0.5601189,2052.2,2051.2,0.54422397]
[1771024635936,0.5601189,2052.0,2051.2,0.54422397]
[1771024638839,0.5601189,2052.2,2051.4,0.53864934]
[1771024649156,0.5701189,2052.2,2051.4,0.53864934]
[1771024654563,0.01,2052.2,2051.4,0.53864934]
[1771024655151,0.59507987,2052.2,2051.4,0.53864934]
[1771024662961,0.56989986,2051.9,2051.4,0.53864934]
[1771024663156,0.56989986,2051.9,2051.3,0.81803811]
[1771024665168,0.01,2052.2,2051.4,0.57413811]
[1771024665359,0.00443569,2052.5,2051.6,0.57413811]
[1771024665564,0.00443569,2052.5,2051.8,0.57413811]
[1771024666773,0.00443569,2052.5,2051.4,5.75798373]
[1771024666774,0.56989986,2052.8,2052.2,0.57413811]
[1771024667170,1.71198373,2052.6,2051.6,0.57413811]
[1771024667366,0.56989986,2052.5,2051.6,0.57413811]
[1771024667772,0.57449104,2052.5,2051.6,0.57413811]
[1771024672974,0.56989986,2052.3,2051.6,0.57413811]
[1771024680273,0.56989986,2052.3,2051.4,0.57413811]
[1771024680475,0.56989986,2052.3,2051.2,4.05157463]
[1771024680476,0.56004828,2051.9,2051.2,0.57971274]
[1771024681074,0.54652416,2051.7,2051.2,0.57971274]
[1771024686082,0.54652416,2051.7,2051.2,0.00557463]
[1771024686278,0.54652416,2051.5,2050.9,0.58764575]
[1771024687273,0.54652416,2051.5,2050.9,0.59213477]
[1771024690486,0.54652416,2052.1,2051.4,0.58764575]
[1771024697399,0.54652416,2051.9,2051.4,0.58764575]
[1771024699989,0.54652416,2052.1,2051.4,0.58764575]
[1771024701696,0.54652416,2051.9,2051.2,0.58764575]
[1771024702401,0.54652416,2051.7,2051.1,0.83157575]
[1771024702593,0.54652416,2051.7,2050.9,0.59213477]
[1771024702994,0.54652416,2051.5,2050.9,0.59213477]
[1771024706903,0.54652416,2051.3,2050.9,0.00448902]
[1771024707204,0.54652416,2051.1,2050.7,0.58764575]
[1771024708104,0.54652416,2051.1,2050.7,0.59155848]
[1771024711900,0.53666372,2051.5,2050.7,0.59155848]
[1771024712602,0.53666372,2051.5,2050.9,0.55116991]
[1771024713911,0.53666372,2050.9,2050.7,0.00391273]
[1771024714200,0.53666372,2050.7,2050.1,0.55116991]
[1771024715205,0.53666372,2050.5,2050.1,0.00475603]
[1771024715611,0.53666372,2050.5,2050.1,0.55592594]
[1771024715810,0.53666372,2050.5,2050.1,0.00475603]
[1771024716002,0.53666372,2050.3,2049.9,0.55116991]
[1771024716501,0.53666372,2050.3,2049.7,0.55116991]
[1771024717010,0.53666372,2050.3,2049.7,0.55650839]
[1771024718706,0.55175028,2050.8,2050.1,0.54338709]
[1771024720409,0.55175028,2050.6,2050.1,0.54338709]
[1771024721512,0.55175028,2050.8,2050.1,0.54338709]
[1771024723316,0.00567143,2050.9,2050.3,0.54338709]
[1771024723517,0.55742171,2050.9,2050.3,0.54338709]
[1771024728015,0.00567143,2050.9,2050.3,0.54338709]
[1771024728217,0.55742171,2050.9,2050.5,0.54338709]
[1771024731413,0.00567143,2050.9,2050.5,0.54338709]
[1771024731717,0.55175028,2051.3,2050.7,0.54338709]
[1771024732516,0.00430904,2051.3,2050.7,0.54338709]
[1771024732712,0.55175028,2051.5,2050.9,0.54338709]
[1771024734013,0.55682673,2051.5,2050.9,0.54338709]
[1771024740317,0.00507645,2051.5,2050.9,0.54338709]
[1771024742718,4.046,2051.9,2051.1,0.56841465]
[1771024742921,4.60016231,2051.9,2051.1,0.56841465]
[1771024743627,0.55416231,2051.8,2051.1,0.56841465]
[1771024743826,0.55819624,2051.8,2051.1,0.56841465]
[1771024767740,0.55819624,2051.8,2050.6,0.56841465]
[1771024768244,0.55416231,2051.6,2050.6,0.56841465]
[1771024777852,0.55239884,2051.4,2050.6,0.56841465]
[1771024785065,0.55239884,2051.7,2050.8,0.53165713]
[1771024786656,0.55643277,2051.8,2050.8,0.53165713]
[1771024794371,0.55643277,2051.8,2051.0,0.53165713]
[1771024796969,0.55239884,2051.7,2051.0,0.53165713]
[1771024800370,0.55239884,2051.3,2050.9,0.24395]
[1771024800571,0.55239884,2051.3,2050.9,0.77560713]
[1771024800875,0.55239884,2051.3,2050.8,0.58366117]
[1771024801076,0.00403393,2051.8,2050.5,0.58366117]
[1771024801077,0.57579966,2051.1,2050.5,0.58366117]
[1771024802471,1.7118949,2051.2,2050.5,0.58366117]
[1771024802772,2.28769456,2051.2,2050.5,0.58366117]
[1771024803170,0.57983359,2051.8,2051.0,0.58366117]
[1771024803371,2.29172849,2051.8,2051.0,0.58366117]
[1771024803674,0.57579966,2051.7,2051.0,0.58366117]
[1771024805471,1.71592883,2051.8,2050.9,1.7118949]
[1771024805472,0.00403393,2051.8,2051.4,0.58366117]
[1771024805771,0.57579966,2052.1,2051.4,0.58366117]
[1771024806472,4.62179966,2052.3,2051.4,0.58366117]
[1771024806669,4.62541637,2052.3,2051.4,0.58926731]
[1771024806870,0.57579966,2052.2,2051.4,0.58926731]
[1771024807073,0.57579966,2052.2,2051.6,0.58366117]
[1771024807271,0.57941637,2052.3,2051.6,0.58366117]
[1771024811273,0.57579966,2052.1,2051.6,0.58366117]
[1771024813581,2.28769456,2052.0,2051.4,0.58926731]
[1771024813782,0.00361671,2052.3,2051.5,0.58366117]
[1771024813984,0.57941637,2052.3,2051.5,0.58366117]
[1771024815184,0.57941637,2052.3,2051.6,0.58366117]
[1771024815582,0.00361671,2052.3,2051.7,0.58366117]
[1771024815879,0.57941637,2052.3,2051.7,0.58366117]
[1771024817087,0.57579966,2052.1,2051.6,0.58366117]
[1771024818678,0.00361671,2052.3,2051.6,0.58366117]
[1771024819183,0.57579966,2053.1,2052.3,0.58366117]
[1771024819386,1.7118949,2053.0,2052.3,0.58366117]
[1771024819587,0.57579966,2052.9,2052.3,0.58366117]
[1771024820190,0.58199199,2052.9,2052.3,0.58366117]
[1771024822285,0.57579966,2052.6,2052.0,0.58366117]
[1771024822492,0.57579966,2052.4,2051.9,0.82749117]
[1771024823588,0.57579966,2052.4,2051.9,0.58366117]
[1771024823792,0.57579966,2052.4,2051.5,0.58366117]
[1771024826093,0.57579966,2052.6,2051.7,0.58366117]
[1771024830600,0.57579966,2052.8,2052.1,0.58366117]
[1771024831096,0.53433452,2052.6,2052.1,0.58366117]
[1771024832500,0.53433452,2052.7,2052.1,0.58366117]
[1771024832700,2.25242175,2052.9,2052.1,0.58366117]
[1771024833192,0.53433452,2052.8,2052.1,0.58366117]
[1771024834302,0.53433452,2052.6,2052.1,0.58366117]
[1771024838406,1.7118949,2052.7,2052.1,0.58366117]
[1771024839000,2.2532274,2052.7,2052.1,0.58366117]
[1771024839606,0.5413325,2052.6,2052.1,0.58366117]
[1771024848404,0.5413325,2052.8,2052.1,0.58366117]
[1771024848611,0.54752483,2052.9,2052.1,0.58366117]
[1771024849210,0.5413325,2052.8,2052.1,0.58366117]
[1771024867427,0.00619233,2052.9,2052.3,0.56540114]
[1771024868224,0.56367152,2052.8,2052.1,0.56540114]
[1771024869328,0.56367152,2052.5,2051.7,0.80925114]
[1771024869522,0.56367152,2052.5,2051.7,0.24385]
[1771024869828,0.56367152,2052.2,2051.4,0.00560614]
[1771024870928,0.56367152,2051.9,2051.2,0.24391]
[1771024871227,0.56367152,2051.9,2050.7,0.56540114]
[1771024872029,0.56367152,2051.9,2050.7,0.56976207]
[1771024872431,0.56367152,2051.6,2050.7,0.56976207]
[1771024873827,0.56367152,2052.0,2050.9,0.56540114]
[1771024874022,0.56367152,2051.9,2050.9,0.56540114]
[1771024874226,0.56367152,2051.5,2050.8,0.80936114]
[1771024874422,0.56367152,2051.5,2050.7,0.56976207]
[1771024889436,1.70984699,2051.6,2050.9,0.56540114]
[1771024889437,0.56367152,2051.6,2050.9,0.56540114]
[1771024889644,0.56367152,2051.6,2051.0,0.24394]
[1771024891135,0.56367152,2051.6,2050.9,0.56540114]
[1771024906649,0.56367152,2051.6,2050.9,0.80934114]
[1771024906851,0.5782539,2051.8,2051.2,0.56119343]
[1771024907452,4.046,2052.0,2051.2,0.56119343]
[1771024907654,6.82943882,2051.9,2051.2,0.56119343]
[1771024907855,0.5782539,2051.9,2051.2,0.56119343]
[1771024911364,0.5782539,2051.8,2051.1,0.24393]
[1771024911549,0.5782539,2051.8,2051.1,0.80512343]
[1771024918867,2.29058622,2051.5,2051.2,0.56119343]
[1771024919955,0.5782539,2051.4,2050.7,0.00436093]
[1771024920160,0.5782539,2051.4,2050.8,0.56119343]
[1771024920161,0.5825869,2051.4,2050.8,0.56119343]
[1771024920569,2.29058622,2051.3,2050.8,0.56119343]
[1771024922066,0.5835148,2051.2,2050.8,0.56119343]
[1771024922266,0.5835148,2051.2,2050.8,0.55069997]
[1771024925067,2.29584712,2051.3,2050.8,0.55069997]
[1771024926270,0.5835148,2051.3,2050.8,0.55069997]
[1771024936976,0.004333,2051.4,2050.8,0.55069997]
[1771024937377,0.5878478,2051.4,2050.8,0.55069997]
[1771024952394,0.5878478,2051.4,2050.7,0.00436093]
[1771024952395,0.004333,2051.4,2051.0,0.55027609]
[1771024954896,0.57882129,2051.8,2051.2,0.55027609]
[1771024955898,0.58481136,2051.8,2051.2,0.55027609]
[1771024965104,2.29851655,2051.5,2051.2,0.55027609]
[1771024965306,0.58618423,2051.4,2051.1,0.80205403]
[1771024969009,0.58618423,2051.4,2051.1,0.55812403]
[1771024972505,0.58618423,2051.4,2050.7,0.00436093]
[1771024972711,0.58618423,2051.4,2050.9,0.55812403]
[1771024973712,0.00599007,2051.8,2050.8,0.55812403]
[1771024973713,0.58618423,2051.2,2050.8,0.55812403]
[1771024979215,0.58618423,2051.7,2051.0,0.55812403]
[1771024981009,0.58618423,2051.7,2051.2,0.5333498]
[1771024982204,0.00599007,2051.8,2051.2,0.5333498]
[1771024982406,0.53181761,2052.5,2051.8,0.5333498]
[1771024983407,0.53791838,2052.5,2051.8,0.5333498]
[1771024984515,0.53791838,2052.5,2051.7,0.7771998]
[1771024985809,0.53181761,2052.2,2051.5,0.5333498]
[1771024986115,0.53181761,2052.2,2051.4,0.5333498]
[1771024988217,0.53181761,2052.4,2051.6,0.5333498]
[1771024991221,0.53181761,2052.4,2051.8,0.5333498]
[1771025006839,0.53181761,2052.4,2051.7,0.7771998]
[1771025008738,0.53181761,2052.4,2051.8,0.5333498]
[1771025011344,0.53181761,2052.4,2051.7,0.82009307]
[1771025014241,0.53181761,2052.4,2051.8,0.57624307]
[1771025018544,0.53504465,2052.1,2050.9,0.56303643]
[1771025020051,0.53504465,2052.1,2051.2,0.24391]
[1771025020246,0.53504465,2052.1,2051.3,0.56303643]
[1771025022653,0.53504465,2051.8,2051.1,0.56303643]
[1771025024340,0.53504465,2051.8,2051.0,0.56303643]
[1771025026152,0.53504465,2051.5,2051.0,0.56303643]
[1771025034261,0.53504465,2051.5,2050.8,0.56303643]
[1771025040966,2.26060352,2051.3,2050.8,0.56303643]
[1771025042561,0.54771117,2051.2,2050.8,0.56303643]
[1771025046463,2.26060352,2051.3,2050.8,0.56303643]
[1771025053270,0.54771117,2051.2,2050.8,0.56303643]
[1771025072284,1.71289235,2051.3,2050.8,0.56303643]
[1771025072988,2.26266143,2051.3,2050.8,0.56303643]
[1771025073490,0.54976908,2051.2,2050.8,0.56303643]
[1771025077997,1.71289235,2051.3,2050.8,0.56303643]
[1771025078292,2.2692632,2051.3,2050.8,0.56303643]
[1771025083998,0.55637085,2051.2,2050.8,0.56303643]
[1771025100116,0.55637085,2051.2,2050.7,0.24833093]
[1771025100803,0.55637085,2051.2,2050.7,0.81358186]
[1771025102716,0.55637085,2051.2,2050.8,0.54448526]
[1771025103214,0.55637085,2051.2,2050.7,0.24833093]
[1771025103415,0.55637085,2051.2,2050.7,0.79281619]
[1771025103915,0.55637085,2051.2,2050.8,0.54448526]
[1771025108215,0.57504035,2051.5,2051.0,0.54448526]
[1771025109417,0.57504035,2051.5,2050.7,0.00436093]
[1771025109418,0.57504035,2051.9,2051.2,0.54448526]
[1771025109718,0.57504035,2051.9,2051.4,0.54448526]
[1771025113125,0.57504035,2052.2,2051.6,0.54448526]
[1771025114219,0.57504035,2051.8,2050.8,0.54448526]
[1771025114421,0.57504035,2051.8,2051.1,0.54448526]
[1771025115125,0.57504035,2051.8,2051.0,0.78842526]
[1771025115925,0.57504035,2051.6,2051.0,0.78842526]
[1771025118020,0.57504035,2051.6,2051.1,0.54448526]
[1771025121030,0.57504035,2051.6,2051.0,0.24394]
[1771025121428,0.57504035,2051.4,2050.7,0.54884619]
[1771025123230,0.57504035,2051.4,2051.0,0.24394]
[1771025123432,0.57504035,2051.4,2050.7,0.54884619]
[1771025124232,0.57504035,2051.4,2051.0,0.24394]
[1771025125837,0.57504035,2051.9,2051.0,0.78842526]
[1771025126039,0.57504035,2051.8,2051.1,0.54448526]
[1771025127535,0.57504035,2051.8,2051.3,0.54448526]
[1771025129638,1.71291481,2052.2,2051.3,0.54448526]
[1771025129838,0.57504035,2052.1,2051.3,0.54448526]
[1771025143853,0.56255276,2051.9,2051.2,0.8043862]
[1771025144054,0.56255276,2051.9,2051.3,0.5604762]
[1771025148661,0.56255276,2052.2,2051.4,0.24389]
[1771025148855,0.56255276,2052.2,2051.5,0.5604762]
[1771025164872,0.55257608,2051.9,2051.5,0.5604762]
[1771025165070,2.26434978,2052.0,2051.5,0.5604762]
[1771025165468,0.55257608,2051.9,2051.5,0.5604762]
[1771025171974,1.7117737,2052.0,2051.5,0.5604762]
[1771025172174,2.26434978,2052.0,2051.5,0.5604762]
[1771025172874,0.55257608,2051.9,2051.5,0.5604762]
[1771025176175,0.55257608,2052.1,2051.7,0.53580664]
[1771025176374,0.55257608,2052.2,2051.7,0.53580664]
[1771025177079,0.55257608,2052.1,2051.7,0.53580664]
[1771025178975,0.55257608,2051.9,2050.8,0.53580664]
[1771025179275,0.55257608,2051.7,2050.8,0.53580664]
[1771025180175,0.55257608,2051.7,2051.3,0.53580664]
[1771025180980,1.7117737,2051.8,2051.3,0.53580664]
[1771025181181,2.26434978,2051.8,2051.3,0.53580664]
[1771025185183,0.55257608,2051.7,2051.3,0.53580664]
[1771025188883,0.55257608,2051.5,2051.2,0.24391]
[1771025190482,1.7117737,2051.6,2051.2,0.24391]
[1771025190682,0.55257608,2051.7,2051.3,0.53580664]
[1771025195888,0.55257608,2051.7,2051.2,0.81522838]
[1771025196490,0.5501159,2051.5,2051.2,0.81522838]
[1771025196682,0.5501159,2051.5,2051.2,0.24391]
[1771025196887,0.32303817,2051.3,2051.0,0.57131838]
[1771025197593,2.2618896,2051.4,2051.0,0.57131838]
[1771025197795,2.03489751,2051.4,2051.0,0.57131838]
[1771025198186,2.03489751,2051.4,2051.2,0.24391]
[1771025198394,1.7117737,2051.6,2051.3,0.56980624]
[1771025198790,0.58299433,2051.8,2051.3,0.56980624]
[1771025198791,1.7117737,2051.8,2051.3,0.56980624]
[1771025198993,2.29476803,2051.8,2051.3,0.56980624]
[1771025199793,0.58299433,2051.7,2051.3,0.56980624]
[1771025200393,0.58299433,2051.5,2051.2,0.81371624]
[1771025200595,0.58299433,2051.5,2051.2,0.24391]
[1771025201195,0.58299433,2051.3,2051.0,0.56980624]
[1771025203391,0.58299433,2051.4,2051.0,0.56980624]
[1771025203598,0.58299433,2051.5,2051.0,0.56980624]
[1771025204297,0.58299433,2051.6,2051.2,0.56980624]
[1771025208097,2.29476803,2051.8,2051.2,0.56980624]
[1771025208696,0.58299433,2051.7,2051.2,0.56980624]
[1771025208907,0.58299433,2051.3,2051.1,0.24393]
[1771025209200,0.58299433,2051.4,2051.1,0.81373624]
[1771025209393,1.7117737,2052.0,2050.7,4.62016717]
[1771025209394,0.58299433,2051.3,2050.7,4.62016717]
[1771025209591,0.58299433,2051.1,2050.7,0.57416717]
[1771025214105,0.58299433,2051.5,2050.9,0.56980624]
[1771025220020,0.35152824,2051.7,2051.1,0.56980624]
[1771025220221,0.35152824,2051.7,2051.2,0.24391]
[1771025220420,0.35152824,2051.7,2051.3,0.56980624]
[1771025220622,0.35152824,2051.7,2051.2,0.24391]
[1771025220822,0.35152824,2051.7,2051.2,0.81371624]
[1771025221023,0.34606069,2051.6,2051.2,0.81371624]
[1771025222321,6.10854998,2051.9,2051.3,0.58144718]
[1771025222722,0.34977628,2051.8,2051.3,0.58144718]
[1771025223527,0.34977628,2051.6,2051.2,0.24391]
[1771025223928,0.34977628,2051.6,2051.2,0.82535718]
[1771025226924,0.34977628,2051.6,2051.3,0.58144718]
[1771025227130,0.34977628,2051.6,2051.2,0.82535718]
[1771025227730,0.34977628,2051.6,2051.3,0.58144718]
[1771025229827,0.3551843,2051.7,2051.3,0.58144718]
[1771025245244,1.71232181,2052.2,2051.3,0.58144718]
[1771025245444,0.34552625,2052.0,2051.3,0.58144718]
[1771025247245,0.34563014,2052.1,2051.5,0.58144718]
[1771025247447,0.34563014,2052.2,2051.5,0.58144718]
[1771025252354,0.34593148,2052.0,2051.5,0.58144718]
[1771025257842,0.34593148,2052.0,2051.3,0.55723543]
[1771025258044,0.55531532,2051.7,2050.9,0.53165102]
[1771025259048,0.55531532,2051.9,2051.0,0.24394]
[1771025259251,0.55531532,2051.9,2051.1,0.53165102]
[1771025259455,0.55531532,2052.1,2051.1,0.53165102]
[1771025259653,0.55531532,2052.1,2051.5,0.53165102]
[1771025259856,0.55531532,2052.4,2051.5,0.53165102]
[1771025267660,0.55531532,2052.2,2051.5,0.53165102]
[1771025280169,0.55531532,2052.4,2051.7,0.53165102]
[1771025280367,0.55531532,2052.4,2051.9,0.53165102]
[1771025280769,0.55531532,2052.4,2051.8,0.24384]
[1771025281367,0.53288914,2052.1,2051.5,0.55987275]
[1771025282668,0.53288914,2052.1,2051.3,0.80377275]
[1771025283171,0.53288914,2052.1,2051.4,0.55987275]
[1771025286874,0.53288914,2051.8,2051.4,0.55987275]
[1771025288975,4.09247994,2052.5,2051.4,0.55987275]
[1771025288976,0.53288914,2052.0,2051.4,0.55987275]
[1771025290176,6.29092781,2052.1,2051.4,0.55987275]
[1771025290474,0.53288914,2052.0,2051.4,0.55987275]
[1771025296785,0.53288914,2052.0,2051.6,0.55987275]
[1771025307183,0.53288914,2052.0,2051.5,0.80375275]
[1771025307990,0.53288914,2052.0,2051.5,0.24388]
[1771025308491,0.53288914,2052.0,2051.5,0.80375275]
[1771025309093,0.53288914,2052.0,2051.6,0.55987275]
[1771025312800,0.53288914,2052.0,2051.5,0.81753537]
[1771025313097,0.53288914,2052.0,2051.6,0.57365537]
[1771025314793,0.53288914,2052.0,2051.5,0.24388]
[1771025314996,0.53288914,2052.0,2051.6,0.57365537]
[1771025316699,0.5549313,2052.2,2051.6,0.57365537]
[1771025319206,0.55779556,2052.0,2051.6,0.57365537]
[1771025319706,0.55779556,2052.0,2051.5,0.82950683]
[1771025320607,0.55779556,2052.0,2051.5,0.24388]
[1771025321310,0.55779556,2052.0,2051.5,0.82950683]
[1771025322202,0.55779556,2052.0,2051.5,0.24388]
[1771025322503,0.55779556,2051.8,2051.3,0.58562683]
[1771025323007,0.55779556,2051.8,2051.1,0.58562683]
[1771025323300,0.55779556,2051.6,2051.1,0.58562683]
[1771025324401,0.55779556,2051.4,2051.1,0.58562683]
[1771025326302,0.55779556,2051.6,2051.1,0.58562683]
[1771025330609,1.71203867,2051.3,2050.7,0.00436093]
[1771025330907,0.55779556,2051.1,2050.7,0.58998776]
[1771025331099,4.60479556,2051.2,2050.7,0.58998776]
[1771025331306,0.55779556,2051.1,2050.7,0.58998776]
[1771025332208,0.55779556,2051.1,2050.7,0.00436093]
[1771025338112,2.26983423,2051.1,2050.5,0.24399]
[1771025338315,0.55779556,2051.0,2049.9,0.58562683]
[1771025338512,0.55779556,2050.9,2050.0,0.58562683]
[1771025339217,0.56186809,2050.9,2050.0,0.5910629]
[1771025341717,0.56186809,2050.9,2050.2,0.55969717]
[1771025341924,0.00407253,2050.9,2050.4,0.55969717]
[1771025342123,0.55898921,2050.9,2050.4,0.55969717]
[1771025344925,0.00407253,2050.9,2050.4,0.55969717]
[1771025345121,0.55491668,2051.3,2050.6,0.55969717]
[1771025346124,0.55992827,2051.3,2050.6,0.55969717]
[1771025350233,0.55992827,2051.3,2050.5,0.244]
[1771025350832,0.55992827,2051.3,2050.6,0.55969717]
[1771025359642,0.55992827,2051.3,2050.5,0.80369717]
[1771025360441,0.55491668,2051.1,2050.5,0.80369717]
[1771025367135,0.55491668,2051.1,2050.6,0.55969717]
[1771025376544,0.55491668,2051.1,2050.1,0.52939241]
[1771025376744,6.84896654,2051.0,2050.3,0.52939241]
[1771025377046,6.29482759,2050.9,2050.3,0.52939241]
[1771025377243,6.84896654,2050.9,2050.3,0.52939241]
[1771025377444,0.55413895,2050.9,2050.3,0.52939241]
[1771025378239,0.54430351,2051.1,2050.3,0.52939241]
[1771025378440,6.30395862,2051.0,2050.3,0.52939241]
[1771025378649,6.30395862,2050.9,2050.3,0.52939241]
[1771025378848,0.54430351,2051.0,2050.3,0.52939241]
[1771025385756,0.54430351,2051.1,2050.5,0.53751779]
[1771025397072,4.59130351,2051.2,2050.7,0.53751779]
[1771025397569,0.54430351,2051.7,2051.1,0.53751779]
[1771025397973,4.59130351,2051.9,2051.1,0.53751779]
[1771025398270,0.54430351,2051.8,2051.0,0.53751779]
[1771025398470,0.54430351,2051.2,2050.4,0.53751779]
[1771025398672,6.33184774,2051.7,2050.1,0.53751779]
[1771025398673,0.54430351,2050.9,2050.1,0.53751779]
[1771025398873,0.54430351,2050.8,2050.1,0.53751779]
[1771025400181,0.54430351,2050.8,2050.0,0.54295386]
[1771025400378,4.047,2050.9,2050.1,0.24404]
[1771025400686,0.54430351,2050.8,2050.2,0.53751779]
[1771025402284,0.55103586,2051.4,2050.4,0.55715555]
[1771025403480,0.55103586,2051.4,2050.6,0.55715555]
[1771025406184,0.55103586,2051.0,2050.1,0.55715555]
[1771025409087,0.55103586,2050.9,2050.1,0.55715555]
[1771025418490,0.55103586,2050.9,2050.3,0.55715555]
[1771025419493,0.55103586,2051.1,2050.5,0.55715555]
[1771025419794,0.55103586,2051.3,2050.5,0.55715555]
[1771025421584,0.55103586,2051.5,2050.7,0.55715555]
[1771025422389,0.55103586,2051.5,2050.9,0.55715555]
[1771025426800,0.55103586,2051.7,2051.1,0.55715555]
[1771025429001,0.55536561,2051.8,2051.3,0.55715555]
[1771025436100,0.00432975,2051.8,2051.3,0.55715555]
[1771025436408,0.57714562,2052.1,2051.5,0.53310363]
[1771025437003,2.29050535,2052.2,2051.5,0.53310363]
[1771025437209,2.29543845,2052.2,2051.5,0.53920782]
[1771025437410,0.57714562,2052.1,2051.5,0.53920782]
[1771025446613,0.54352784,2051.9,2051.5,0.53920782]
[1771025446810,0.54352784,2051.7,2051.4,0.79563228]
[1771025447010,2.25688757,2051.8,2051.5,0.55174228]
[1771025447818,2.25688757,2051.8,2051.5,0.55783753]
[1771025454418,0.54352784,2051.8,2051.5,0.55783753]
[1771025454624,2.25688757,2052.0,2051.5,0.55783753]
[1771025455320,0.54352784,2051.9,2051.5,0.55783753]
[1771025466131,2.25279645,2052.2,2051.5,0.55783753]
[1771025466327,0.53450362,2052.1,2051.5,0.55783753]
[1771025467527,0.53450362,2051.9,2051.5,0.55783753]
[1771025476032,0.0049331,2052.2,2051.5,0.55783753]
[1771025476234,0.53450362,2052.1,2051.5,0.55783753]
[1771025493055,0.55338042,2052.2,2051.7,0.5749271]
[1771025493356,0.55338042,2052.2,2051.6,0.24387]
[1771025494144,0.55338042,2052.2,2051.6,0.8187971]
[1771025497454,0.55338042,2052.2,2051.6,0.24387]
[1771025502861,0.55338042,2052.2,2051.6,0.79329636]
[1771025506966,0.55338042,2052.2,2051.6,0.24387]
[1771025508066,0.55338042,2052.2,2051.6,0.79329636]
[1771025512468,0.55338042,2052.2,2051.6,0.24387]
[1771025512775,0.58203016,2052.0,2051.5,0.00609525]
[1771025513669,0.58203016,2052.0,2051.5,0.55552161]
[1771025518872,0.58203016,2052.0,2051.1,0.24392]
[1771025519074,0.58203016,2051.6,2050.7,0.54942636]
[1771025519973,0.58203016,2051.6,2050.7,0.55366571]
[1771025523468,0.58401814,2051.4,2050.7,0.00423935]
[1771025523975,0.58401814,2051.4,2050.7,0.55201062]
[1771025525674,0.58401814,2051.5,2050.9,0.54777127]
[1771025532885,0.58401814,2051.4,2050.9,0.54777127]
[1771025533280,0.58401814,2051.4,2050.8,0.24396]
[1771025533485,0.58401814,2051.4,2050.8,0.79173127]
[1771025537693,0.58401814,2051.4,2050.9,0.54777127]
[1771025537986,0.58401814,2051.6,2050.9,0.54777127]
[1771025541802,0.58401814,2051.7,2051.1,0.54777127]
[1771025545302,0.58401814,2051.9,2051.1,0.54777127]
[1771025547396,0.58401814,2051.9,2051.3,0.54777127]
[1771025547602,0.58401814,2052.0,2051.3,0.54777127]
[1771025554312,2.29673533,2052.0,2051.3,0.54777127]
[1771025555716,0.55801844,2051.9,2051.3,0.54777127]
[1771025557123,0.55801844,2052.1,2051.5,0.53858691]
[1771025557420,2.27566873,2052.2,2051.5,0.53858691]
[1771025558613,0.56295154,2052.2,2051.7,0.54139525]
[1771025558819,0.0049331,2052.2,2051.7,0.54139525]
[1771025564109,0.58811957,2052.2,2051.7,0.54139525]
[1771025570220,0.58318647,2052.0,2051.6,0.78526525]
[1771025578327,0.58318647,2052.0,2051.7,0.54139525]
[1771025581029,0.58318647,2052.0,2051.6,0.82474734]
[1771025582530,0.58318647,2052.0,2051.7,0.58087734]
[1771025584426,0.58318647,2052.0,2051.6,0.82474734]
[1771025584618,0.54818886,2051.7,2051.4,0.58087734]
[1771025585222,0.54818886,2051.7,2050.9,0.58087734]
[1771025586130,0.54818886,2051.7,2051.1,0.24392]
[1771025586332,0.54818886,2051.7,2051.2,0.58087734]
[1771025587334,0.54818886,2051.8,2051.2,0.58087734]
[1771025600341,0.54818886,2051.8,2051.1,0.24392]